lending/lending_fUSD_20260124
["ID","MTS","AMOUNT","RATE_DAILY","PERIOD"]
[403200174,1769266248023,-2000.0,0.0001782,2]
[403200176,1769266248035,-2782.68425898,0.0001782,2]
[403200178,1769266248045,-231.38369303,0.0001782,2]
[403200180,1769266248055,-150.0,0.00017824,2]
[403200182,1769266248073,-1000.0,0.00017825,2]
[403200185,1769266248084,-867.75,0.00017826,2]
[403200187,1769266248094,-1000.0,0.00017827,2]
[403200189,1769266248105,-150.0,0.00017834,2]
[403200191,1769266248116,-1000.0,0.00017836,2]
[403200194,1769266248127,-328.57,0.00017838,2]
[403200196,1769266248138,-151.0,0.0001784,2]
[403200198,1769266248148,-151.0,0.0001784,2]
[403200200,1769266248159,-151.0,0.0001784,2]
[403200202,1769266248169,-151.0,0.0001784,2]
[403200204,1769266248180,-151.0,0.0001784,2]
[403200207,1769266248190,-151.0,0.0001784,2]
[403200209,1769266248201,-151.0,0.0001784,2]
[403200211,1769266248211,-151.0,0.0001784,2]
[403200213,1769266248221,-151.0,0.0001784,2]
[403200215,1769266248231,-151.0,0.0001784,2]
[403200217,1769266248242,-151.0,0.0001784,2]
[403200220,1769266248256,-151.0,0.0001784,2]
[403200222,1769266248267,-151.0,0.0001784,2]
[403200224,1769266248279,-151.0,0.0001784,2]
[403200227,1769266248290,-151.0,0.0001784,2]
[403200229,1769266248302,-151.0,0.0001784,2]
[403200231,1769266248313,-151.0,0.0001784,2]
[403200233,1769266248324,-151.0,0.0001784,2]
[403200236,1769266248336,-151.0,0.0001784,2]
[403200238,1769266248348,-151.0,0.0001784,2]
[403200240,1769266248358,-151.0,0.0001784,2]
[403200242,1769266248369,-151.0,0.0001784,2]
[403200244,1769266248380,-151.0,0.0001784,2]
[403200246,1769266248390,-151.0,0.0001784,2]
[403200249,1769266248402,-151.0,0.0001784,2]
[403200251,1769266248413,-151.0,0.0001784,2]
[403200253,1769266248423,-151.0,0.0001784,2]
[403200255,1769266248434,-151.0,0.0001784,2]
[403200258,1769266248448,-151.0,0.0001784,2]
[403200260,1769266248458,-151.0,0.0001784,2]
[403200262,1769266248469,-151.0,0.0001784,2]
[403200264,1769266248479,-151.0,0.0001784,2]
[403200266,1769266248490,-151.0,0.0001784,2]
[403200268,1769266248500,-151.0,0.0001784,2]
[403200271,1769266248512,-151.0,0.0001784,2]
[403200273,1769266248523,-151.0,0.0001784,2]
[403200275,1769266248533,-151.0,0.0001784,2]
[403200277,1769266248544,-151.0,0.0001784,2]
[403200279,1769266248555,-151.0,0.0001784,2]
[403200282,1769266248566,-151.0,0.0001784,2]
[403200284,1769266248576,-151.0,0.0001784,2]
[403200286,1769266248587,-151.0,0.0001784,2]
[403200288,1769266248598,-151.0,0.0001784,2]
[403200291,1769266248608,-158.0,0.0001784,2]
[403200293,1769266248619,-151.0,0.0001784,2]
[403200295,1769266248634,-151.0,0.0001784,2]
[403200297,1769266248645,-151.0,0.0001784,2]
[403200300,1769266248656,-151.0,0.0001784,2]
[403200302,1769266248666,-151.0,0.0001784,2]
[403200304,1769266248677,-151.0,0.0001784,2]
[403200306,1769266248687,-151.0,0.0001784,2]
[403200308,1769266248698,-151.0,0.0001784,2]
[403200311,1769266248709,-151.0,0.0001784,2]
[403200313,1769266248719,-151.0,0.0001784,2]
[403200315,1769266248730,-206.4391514,0.0001784,2]
[403200317,1769266248741,-166.39156659,0.0001784,2]
[403200319,1769266248751,-2782.68425898,0.0001784,2]
[403200320,1769266248763,-25000.0,0.00017847,3]
[403200321,1769266248773,-1000.0,0.00017849,2]
[403200322,1769266248783,-165.97106181,0.0001785,2]
[403200323,1769266248794,-500.0,0.0001785,2]
[403200324,1769266248804,-1000.0,0.00017851,2]
[403200325,1769266248816,-328.57,0.00017852,2]
[403200326,1769266248827,-1170.0,0.00017852,2]
[403200327,1769266248837,-200.0,0.00017855,2]
[403200328,1769266248847,-25000.0,0.00017856,3]
[403200329,1769266248857,-200.0,0.00017856,2]
[403200330,1769266248867,-2782.68425898,0.0001786,2]
[403200331,1769266248877,-500.0,0.00017862,2]
[403200332,1769266248888,-15055.0,0.00017863,2]
[403200334,1769266248898,-25000.0,0.00017865,3]
[403200336,1769266248909,-328.57,0.00017866,2]
[403200338,1769266248919,-1000.0,0.00017869,2]
[403200340,1769266248929,-150.0,0.00017872,2]
[403200342,1769266248940,-500.0,0.00017873,2]
[403200344,1769266248951,-25000.0,0.00017874,3]
[403200347,1769266248961,-251.41764929,0.00017875,2]
[403200349,1769266248971,-150.64229158,0.00017875,2]
[403200352,1769266248990,-2782.68425898,0.0001788,2]
[403200355,1769266249007,-1000.0,0.00017882,2]
[403200357,1769266249020,-25000.0,0.00017882,3]
[403200360,1769266249035,-200.0,0.00017887,2]
[403200362,1769266249050,-3552.7,0.00017887,2]
[403200365,1769266249065,-152.734551,0.00017889,2]
[403200368,1769266249079,-4840.1444,0.00017889,2]
[403200370,1769266249093,-10000.0,0.00017889,2]
[403200372,1769266249104,-25000.0,0.00017891,3]
[403200375,1769266249118,-153.7074367,0.00017894,2]
[403200377,1769266249133,-334.5472959,0.00017897,2]
[403200380,1769266249148,-326.49485469,0.000179,2]
[403200383,1769266249163,-320.25464445,0.000179,2]
[403200387,1769266249188,-25000.0,0.000179,3]
[403200390,1769266249212,-7609.85651561,0.000179,3]
[403200393,1769266249232,-9228.38170577,0.000179,2]
[403200396,1769266249250,-14710.25627186,0.000179,2]
[403200399,1769266249265,-2782.68425898,0.000179,2]
[403200402,1769266249287,-10031.62268467,0.000179,2]
[403200405,1769266249304,-6600.0,0.000179,2]
[403200408,1769266249321,-1000.0,0.00017906,2]
[403200410,1769266249332,-1000.0,0.0001792,2]
[403200413,1769266249345,-170.32,0.00017922,2]
[403200416,1769266249363,-1000.0,0.00017926,2]
[403200418,1769266249374,-393.45440139,0.00017934,2]
[403200420,1769266249386,-170.32,0.00017944,2]
[403200423,1769266249401,-233.98,0.00017945,2]
[403200426,1769266249420,-5800.0,0.00017949,2]
[403200428,1769266249432,-518.74,0.00017955,2]
[403200431,1769266249443,-150.0,0.00017957,2]
[403200433,1769266249457,-5800.0,0.00017958,2]
[403200436,1769266249472,-1000.0,0.00017959,2]
[403200438,1769266249488,-233.98,0.00017963,2]
[403200441,1769266249504,-170.31871706,0.00017966,2]
[403200444,1769266249520,-5800.0,0.00017966,2]
[403200447,1769266249535,-500.0,0.00017969,2]
[403200449,1769266249549,-1000.0,0.0001797,2]
[403200451,1769266249566,-500.0,0.0001797,2]
[403200454,1769266249580,-500.0,0.0001797,2]
[403200456,1769266249594,-1000.0,0.0001797,2]
[403200459,1769266249608,-500.0,0.0001797,2]
[403200462,1769266249623,-1000.0,0.0001797,2]
[403200464,1769266249638,-500.0,0.0001797,2]
[403200467,1769266249652,-1000.0,0.0001797,2]
[403200469,1769266249665,-500.0,0.0001797,2]
[403200472,1769266249678,-1000.0,0.0001797,2]
[403200475,1769266249699,-500.0,0.0001797,2]
[403200478,1769266249714,-1000.0,0.0001797,2]
[403200481,1769266249729,-601.31337833,0.0001797,2]
[403200485,1769266249757,-1425.13914229,0.0001797,2]
[403200487,1769266249771,-500.0,0.00017972,2]
[403200490,1769266249784,-500.0,0.00017973,2]
[403200492,1769266249797,-500.0,0.00017973,2]
[403200495,1769266249810,-500.0,0.00017973,2]
[403200497,1769266249824,-500.0,0.00017973,2]
[403200500,1769266249837,-500.0,0.00017973,2]
[403200502,1769266249850,-163.10376799,0.00017973,2]
[403200505,1769266249863,-163.215227,0.00017973,2]
[403200507,1769266249875,-162.86883444,0.00017973,2]
[403200510,1769266249888,-500.0,0.00017973,2]
[403200512,1769266249901,-500.0,0.00017973,2]
[403200514,1769266249913,-500.0,0.00017973,2]
[403200517,1769266249927,-500.0,0.00017973,2]
[403200519,1769266249939,-500.0,0.00017973,2]
[403200522,1769266249952,-573.18204786,0.00017973,2]
[403200524,1769266249965,-500.0,0.00017973,2]
[403200527,1769266249978,-500.0,0.00017973,2]
[403200529,1769266249993,-500.0,0.00017973,2]
[403200531,1769266250008,-500.0,0.00017973,2]
[403200534,1769266250021,-500.0,0.00017973,2]
[403200536,1769266250039,-500.0,0.00017973,2]
[403200539,1769266250053,-500.0,0.00017973,2]
[403200542,1769266250070,-336.33747242,0.00017973,2]
[403200544,1769266250084,-333.14308792,0.00017973,2]
[403200547,1769266250099,-161.20666181,0.00017973,2]
[403200550,1769266250113,-500.0,0.00017973,2]
[403200552,1769266250127,-521.52144255,0.00017973,2]
[403200555,1769266250141,-500.0,0.00017973,2]
[403200557,1769266250155,-150.87644931,0.00017973,2]
[403200560,1769266250168,-150.0,0.00017973,2]
[403200562,1769266250181,-500.0,0.00017973,2]
[403200565,1769266250196,-161.7441045,0.00017973,2]
[403200567,1769266250209,-500.0,0.00017973,2]
[403200569,1769266250222,-160.30101054,0.00017973,2]
[403200572,1769266250235,-500.0,0.00017973,2]
[403200574,1769266250248,-500.0,0.00017973,2]
[403200577,1769266250261,-558.82608128,0.00017973,2]
[403200579,1769266250274,-208.11665623,0.00017973,2]
[403200582,1769266250286,-500.0,0.00017973,2]
[403200584,1769266250299,-161.29695591,0.00017973,2]
[403200586,1769266250312,-160.03318119,0.00017973,2]
[403200589,1769266250325,-158.06916035,0.00017973,2]
[403200591,1769266250337,-160.04994992,0.00017973,2]
[403200594,1769266250350,-160.05079201,0.00017973,2]
[403200596,1769266250363,-500.0,0.00017973,2]
[403200598,1769266250375,-160.95253726,0.00017973,2]
[403200601,1769266250387,-159.93585942,0.00017973,2]
[403200604,1769266250403,-500.0,0.00017973,2]
[403200606,1769266250417,-160.04998238,0.00017973,2]
[403200609,1769266250432,-500.0,0.00017973,2]
[403200611,1769266250446,-160.0507877,0.00017973,2]
[403200614,1769266250459,-161.03754612,0.00017973,2]
[403200616,1769266250473,-500.0,0.00017973,2]
[403200619,1769266250487,-500.0,0.00017973,2]
[403200621,1769266250502,-300.0,0.00017973,2]
[403200624,1769266250514,-500.0,0.00017973,2]
[403200626,1769266250529,-500.0,0.00017973,2]
[403200629,1769266250543,-500.0,0.00017973,2]
[403200631,1769266250556,-500.0,0.00017973,2]
[403200634,1769266250569,-500.0,0.00017973,2]
[403200636,1769266250582,-500.0,0.00017973,2]
[403200639,1769266250595,-335.93123339,0.00017973,2]
[403200641,1769266250608,-500.0,0.00017973,2]
[403200643,1769266250621,-500.0,0.00017973,2]
[403200646,1769266250635,-500.0,0.00017973,2]
[403200648,1769266250648,-150.0,0.00017973,2]
[403200651,1769266250660,-500.0,0.00017973,2]
[403200653,1769266250673,-500.0,0.00017973,2]
[403200655,1769266250685,-500.0,0.00017973,2]
[403200658,1769266250698,-160.05036115,0.00017973,2]
[403200660,1769266250710,-180.05440168,0.00017973,2]
[403200663,1769266250723,-500.0,0.00017973,2]
[403200665,1769266250736,-500.0,0.00017973,2]
[403200668,1769266250752,-512.1744801,0.00017973,2]
[403200670,1769266250765,-160.03828545,0.00017973,2]
[403200673,1769266250777,-157.31967869,0.00017973,2]
[403200675,1769266250791,-160.05242782,0.00017973,2]
[403200677,1769266250803,-160.05160425,0.00017973,2]
[403200680,1769266250815,-160.04899722,0.00017973,2]
[403200682,1769266250828,-500.0,0.00017973,2]
[403200685,1769266250841,-500.0,0.00017973,2]
[403200687,1769266250853,-511.74783648,0.00017973,2]
[403200689,1769266250865,-500.0,0.00017973,2]
[403200692,1769266250876,-500.0,0.00017973,2]
[403200694,1769266250889,-508.83270828,0.00017973,2]
[403200697,1769266250901,-284.08136107,0.00017973,2]
[403200699,1769266250913,-208.57012707,0.00017973,2]
[403200701,1769266250925,-161.24700646,0.00017973,2]
[403200704,1769266250939,-500.0,0.00017973,2]
[403200706,1769266250951,-500.0,0.00017973,2]
[403200709,1769266250963,-500.0,0.00017973,2]
[403200711,1769266250975,-165.72236604,0.00017973,2]
[403200713,1769266250988,-308.89625283,0.00017973,2]
[403200716,1769266251004,-500.0,0.00017973,2]
[403200718,1769266251016,-169.51216753,0.00017973,2]
[403200721,1769266251028,-500.0,0.00017973,2]
[403200723,1769266251041,-161.91357387,0.00017973,2]
[403200725,1769266251053,-162.47485834,0.00017973,2]
[403200728,1769266251064,-548.15607658,0.00017973,2]
[403200730,1769266251076,-167.78129088,0.00017973,2]
[403200732,1769266251088,-500.0,0.00017973,2]
[403200735,1769266251100,-500.0,0.00017973,2]
[403200737,1769266251116,-500.0,0.00017973,2]
[403200740,1769266251128,-500.0,0.00017973,2]
[403200742,1769266251139,-500.0,0.00017973,2]
[403200744,1769266251152,-500.0,0.00017973,2]
[403200746,1769266251163,-164.56853003,0.00017973,2]
[403200749,1769266251175,-166.43972344,0.00017973,2]
[403200751,1769266251187,-500.0,0.00017973,2]
[403200753,1769266251199,-500.0,0.00017973,2]
[403200756,1769266251211,-500.0,0.00017973,2]
[403200758,1769266251223,-485.5720463,0.00017973,2]
[403200760,1769266251235,-500.0,0.00017973,2]
[403200763,1769266251247,-500.0,0.00017973,2]
[403200765,1769266251259,-500.0,0.00017973,2]
[403200767,1769266251271,-500.0,0.00017973,2]
[403200770,1769266251283,-150.0,0.00017973,2]
[403200772,1769266251295,-5800.0,0.00017975,2]
[403200774,1769266251306,-1000.0,0.00017976,2]
[403200777,1769266251319,-1000.0,0.00017978,2]
[403200779,1769266251331,-1000.0,0.00017981,2]
[403200781,1769266251343,-233.98,0.00017982,2]
[403200783,1769266251354,-500.0,0.00017982,2]
[403200786,1769266251366,-5800.0,0.00017983,2]
[403200788,1769266251378,-150.0,0.0001799,2]
[403200790,1769266251391,-715.10228288,0.0001799,2]
[403200793,1769266251403,-715.10228288,0.0001799,2]
[403200795,1769266251415,-5800.0,0.00017992,2]
[403200798,1769266251431,-151.0,0.00017997,2]
[403200800,1769266251445,-500.0,0.00017998,2]
[403200801,1769266251454,-500.0,0.00017998,2]
[403200802,1769266251464,-500.0,0.00017998,2]
[403200803,1769266251473,-249.48172896,0.00017999,2]
[403200804,1769266251482,-410.92119628,0.00017999,2]
[403200805,1769266251491,-551.95368049,0.00017999,2]
[403200806,1769266251500,-300.0,0.00017999,2]
[403200807,1769266251509,-300.0,0.00017999,2]
[403200808,1769266251518,-500.0,0.00017999,2]
[403200809,1769266251527,-500.0,0.00017999,2]
[403200810,1769266251536,-500.0,0.00017999,2]
[403200811,1769266251545,-500.0,0.00017999,2]
[403200851,1769266251555,-500.0,0.00017999,2]
[403200856,1769266251972,-500.0,0.00017999,2]
[403200859,1769266251999,-500.0,0.00017999,2]
[403200861,1769266252009,-174.88782971,0.00017999,2]
[403200863,1769266252018,-300.0,0.00017999,2]
[403200865,1769266252030,-300.0,0.00017999,2]
[403200867,1769266252042,-500.0,0.00017999,2]
[403200869,1769266252053,-500.0,0.00017999,2]
[403200871,1769266252063,-365.11234133,0.00017999,2]
[403200873,1769266252073,-300.0,0.00017999,2]
[403200875,1769266252082,-500.0,0.00017999,2]
[403200877,1769266252091,-500.0,0.00017999,2]
[403200879,1769266252101,-311.60217601,0.00017999,2]
[403200881,1769266252110,-300.0,0.00017999,2]
[403200883,1769266252119,-4766078.41012114,0.00018,2]
[403200935,1769266252592,-268.574,0.00018,2]
[403200938,1769266252603,-527.99994316,0.00018,2]
[403200940,1769266252614,-3608.27472446,0.00018,2]
[403200951,1769266252705,-500.0,0.00013623,2]
[403200953,1769266252714,-13366.1066969,0.00018,2]
[403200955,1769266252726,-2900.18651994,0.00018,2]
[403200957,1769266252738,-242028.7626935,0.00018,2]
[403200967,1769266252814,-127065.60977042,0.00018,2]
[403201131,1769266254483,-500.0,0.00013897,2]
[403201133,1769266254493,-500.0,0.00014171,2]
[403201135,1769266254502,-500.0,0.00014445,2]
[403201137,1769266254511,-20.0,0.00014719,2]
[403201144,1769266254565,-436.99230319,0.00014719,2]
[403201146,1769266254574,-151.0,0.00015286,2]
[403201148,1769266254583,-165.4,0.00016712,2]
[403201150,1769266254592,-542.43224745,0.00018,2]
[403201152,1769266254603,-70391.56412352,0.00018,2]
[403201154,1769266254614,-9827.6677567,0.00018,2]
[403201170,1769266254754,-30802.60585003,0.00018,2]
[403201172,1769266254765,-1844.40697459,0.00018,2]
[403201177,1769266254804,-3210.0,0.00018,2]
[403201180,1769266254815,-5541.17509426,0.00018,2]
[403201184,1769266254845,-1737.4651945,0.00018,2]
[403201319,1769266256158,-311.93432102,0.0001615,2]
[403201321,1769266256167,-2016.11150608,0.00018,2]
[403201334,1769266256278,-2079.50002,0.00018,2]
[403201336,1769266256289,-5631.55648853,0.00018,2]
[403201339,1769266256299,-651.4799978,0.00018,2]
[403201342,1769266256323,-5712.99188177,0.00018,2]
[403201344,1769266256334,-1317.67248257,0.00018,2]
[403201350,1769266256374,-352.65000006,0.00018,2]
[403201480,1769266257724,7933.56064255,0.00011775,2]
[403201486,1769266257778,10000.01,0.00011775,2]
[403201492,1769266257830,10000.01,0.00011775,2]
[403201499,1769266257882,10000.01,0.00011775,2]
[403201506,1769266257933,10000.01,0.00011775,2]
[403201512,1769266257983,10000.01,0.00011775,2]
[403201518,1769266258034,10000.01,0.00011775,2]
[403201525,1769266258083,10000.01,0.00011775,2]
[403201531,1769266258132,10000.01,0.00011775,2]
[403201538,1769266258185,10000.01,0.00011775,2]
[403202228,1769266265853,-445.55790925,0.00011775,2]
[403202618,1769266269760,-150.0,0.00011774,2]
[403202624,1769266269811,-448.16559277,0.00011774,2]
[403202710,1769266270602,-209.78581975,0.00011775,2]
[403202851,1769266272060,-220.48513553,0.00011775,2]
[403203168,1769266275176,-834.03947645,0.00011775,2]
[403203410,1769266277579,-333.88342781,0.00011775,2]
[403203576,1769266279261,-163.83968361,0.00011775,2]
[403203753,1769266281058,-217.50417788,0.00011775,2]
[403203956,1769266283106,-311.9700595,0.00011775,2]
[403204162,1769266285664,-300.0,0.00011775,2]
[403204402,1769266288122,-300.0,0.00011775,2]
[403204857,1769266292690,3133.095,0.00011539,2]
[403204869,1769266292784,232.361,0.00011539,2]
[403206368,1769266312697,167.56639458,0.00011675,2]
[403206369,1769266347118,5270.65641988,0.00011675,2]
[403206370,1769266347166,10000.01,0.00011675,2]
[403206371,1769266347214,10000.01,0.00011675,2]
[403206372,1769266347263,1633.44649047,0.00011675,2]
[403206373,1769266356563,7232.12177758,0.00011675,2]
[403206376,1769266382085,300.0,0.00011774,2]
[403206383,1769266441476,300.0,0.00011774,2]
[403206384,1769266442936,150.0,0.00011774,2]
[403206385,1769266443199,247.0,0.00011774,2]
[403206386,1769266447326,137.44173195,0.00011774,2]
[403206387,1769266447376,217.18751556,0.00011774,2]
[403206390,1769266458180,300.0,0.00011774,2]
[403206391,1769266470440,-404.41989752,0.00011775,2]
[403206392,1769266473392,312.46801973,0.00011774,2]
[403206393,1769266473580,-277.80208557,0.00011775,2]
[403206394,1769266475730,-221.38599981,0.00011775,2]
[403206395,1769266477729,-303.74099113,0.00011775,2]
[403206396,1769266481333,-386.3893731,0.00011775,2]
[403206397,1769266481999,233.9507408,0.00011675,2]
[403206398,1769266482771,-259.49426084,0.00011775,2]
[403206399,1769266484213,500.0,0.00011774,2]
[403206400,1769266484328,500.0,0.00011774,2]
[403206401,1769266484461,500.0,0.00011774,2]
[403206402,1769266484583,574.73429015,0.00011774,2]
[403206404,1769266486305,-256.57295727,0.00011775,2]
[403206407,1769266501341,300.0,0.00011774,2]
[403206408,1769266501616,1200.0,0.00011774,2]
[403206412,1769266526039,500.0,0.00014,5]
[403206413,1769266542382,503.0,0.000226,120]
[403206414,1769266547785,244.64407154,0.00011774,2]
[403206415,1769266560709,-158.98184327,0.00011775,2]
[403206416,1769266561462,300.0,0.00011774,2]
[403206417,1769266564121,-296.64785053,0.00011775,2]
[403206418,1769266565582,171.25085007,0.00011774,2]
[403206419,1769266566101,-596.81575953,0.00011775,2]
[403206420,1769266567519,2109.8056,0.00011675,2]
[403206421,1769266568114,-380.0870979,0.00011775,2]
[403206422,1769266570445,-178.97356656,0.00011775,2]
[403206423,1769266574566,-272.06885572,0.00011775,2]
[403206424,1769266577093,-290.92210688,0.00011775,2]
[403206425,1769266583012,-248.356892,0.00011775,2]
[403206426,1769266584734,-579.65078794,0.00011775,2]
[403206427,1769266589552,-254.84613125,0.00011775,2]
[403206430,1769266593666,-156.30632335,0.00011775,2]
[403206433,1769266595119,-423.18500909,0.00011775,2]
[403206434,1769266597452,-409.01146475,0.00011775,2]
[403206435,1769266599604,-174.61919141,0.00011775,2]
[403206436,1769266602471,-250.85993553,0.00011775,2]
[403206437,1769266603472,-175.39869777,0.00011775,2]
[403206438,1769266606088,-472.8156527,0.00011775,2]
[403206439,1769266607579,-154.97974583,0.00011775,2]
[403206440,1769266609583,-207.09347675,0.00011775,2]
[403206441,1769266611665,-405.29924118,0.00011775,2]
[403206442,1769266613447,-200.15428726,0.00011775,2]
[403206443,1769266616296,-360.95543235,0.00011775,2]
[403206444,1769266618397,-435.28879196,0.00011775,2]
[403206445,1769266620034,-253.0140025,0.00011775,2]
[403206446,1769266621404,300.0,0.00011774,2]
[403206447,1769266623304,150.0,0.00011774,2]
[403206448,1769266623659,-209.20770058,0.00011775,2]
[403206449,1769266625442,500.0,0.00011775,2]
[403206450,1769266626042,-302.0,0.00011775,2]
[403206451,1769266628570,-203.33800107,0.00011775,2]
[403206453,1769266628986,174.47715349,0.00011775,2]
[403206454,1769266630048,-256.54516795,0.00011775,2]
[403206455,1769266631275,-455.80074815,0.00011775,2]
[403206456,1769266632838,-199.77571834,0.00011775,2]
[403206457,1769266634978,-209.40344106,0.00011775,2]
[403206458,1769266637210,500.0,0.00011775,2]
[403206459,1769266637785,500.0,0.00011775,2]
[403206460,1769266638693,-344.33935801,0.00011775,2]
[403206461,1769266640276,-419.00643504,0.00011775,2]
[403206463,1769266642484,-171.66569563,0.00011775,2]
[403206465,1769266645613,-209.21893678,0.00011775,2]
[403206466,1769266647139,-236.39367648,0.00011775,2]
[403206467,1769266648584,411.49175866,0.00011775,2]
[403206468,1769266648634,88.50824134,0.00011775,2]
[403206469,1769266648819,151.0,0.00011775,2]
[403206470,1769266649113,500.0,0.00011775,2]
[403206471,1769266649359,151.0,0.00011775,2]
[403206472,1769266649787,500.0,0.00011775,2]
[403206473,1769266650008,151.0,0.00011775,2]
[403206474,1769266650281,500.0,0.00011775,2]
[403206475,1769266650483,151.0,0.00011775,2]
[403206476,1769266650642,-1129.58360968,0.00011775,2]
[403206477,1769266651388,151.0,0.00011775,2]
[403206478,1769266651727,151.0,0.00011775,2]
[403206479,1769266652143,151.0,0.00011775,2]
[403206480,1769266652480,151.0,0.00011775,2]
[403206481,1769266653053,151.0,0.00011775,2]
[403206482,1769266653729,151.0,0.00011775,2]
[403206483,1769266654044,-310.54156861,0.00011775,2]
[403206484,1769266654410,151.0,0.00011775,2]
[403206485,1769266655926,200.0,0.00011775,2]
[403206486,1769266656722,462.2217,0.00011675,2]
[403206487,1769266657516,-219.33823485,0.00011775,2]
[403206488,1769266658640,-165.01251862,0.00011775,2]
[403206513,1769266661707,-229.37692669,0.00011775,2]
[403206514,1769266661812,-7284.6112442,0.00011775,2]
[403206515,1769266662170,-10000.01,0.00011775,2]
[403206516,1769266662500,-10000.01,0.00011775,2]
[403206522,1769266663287,-10000.01,0.00011775,2]
[403206523,1769266663330,-196.2339426,0.00011775,2]
[403206524,1769266663495,-10000.01,0.00011775,2]
[403206535,1769266666112,-160.14991565,0.00011775,2]
[403206537,1769266666215,-10000.01,0.00011775,2]
[403206538,1769266666338,-10000.01,0.00011775,2]
[403206540,1769266666626,-10000.01,0.00011775,2]
[403206546,1769266666942,-10000.01,0.00011775,2]
[403206555,1769266667815,-10000.01,0.00011775,2]
[403206557,1769266669895,-158.02750645,0.00011775,2]
[403206562,1769266672467,-145.52374779,0.00011775,2]
[403206563,1769266673532,-359.42266814,0.00011775,2]
[403206565,1769266678149,-203.14186998,0.00011775,2]
[403206566,1769266680338,-191.79568348,0.00011775,2]
[403206567,1769266681321,300.0,0.00011774,2]
[403206568,1769266682444,-374.88298437,0.00011775,2]
[403206569,1769266687205,-358.06244773,0.00011775,2]
[403206571,1769266690002,-266.42171017,0.00011775,2]
[403206572,1769266692315,-345.94478581,0.00011775,2]
[403206573,1769266693810,-255.69688058,0.00011775,2]
[403206574,1769266695726,-628.74678196,0.00011775,2]
[403206575,1769266698102,-387.92974064,0.00011775,2]
[403206576,1769266699684,-263.01029106,0.00011775,2]
[403206581,1769266702482,-456.1477153,0.00011775,2]
[403206582,1769266703914,-170.11123983,0.00011775,2]
[403206583,1769266707533,-280.39885499,0.00011775,2]
[403206585,1769266711386,-277.1528763,0.00011775,2]
[403206586,1769266714523,-232.09640326,0.00011775,2]
[403206588,1769266717804,-227.21,0.00011775,2]
[403206589,1769266720410,-182.45321182,0.00011775,2]
[403206592,1769266722442,-202.2191889,0.00011775,2]
[403206593,1769266727257,-313.91034674,0.00011775,2]
[403206594,1769266728639,-237.64234053,0.00011775,2]
[403206595,1769266730550,-236.90060527,0.00011775,2]
[403206596,1769266732638,-305.4479027,0.00011775,2]
[403206597,1769266733320,10000.01,0.00011675,2]
[403206598,1769266733380,10000.01,0.00011675,2]
[403206599,1769266733442,10000.01,0.00011675,2]
[403206600,1769266733503,10000.01,0.00011675,2]
[403206602,1769266733561,1835.64569202,0.00011675,2]
[403206604,1769266734250,-193.18732749,0.00011775,2]
[403206605,1769266738037,-205.96607681,0.00011775,2]
[403206606,1769266739977,-207.93275091,0.00011675,2]
[403206608,1769266742390,-19.43864909,0.00011675,2]
[403206609,1769266742429,-218.76008842,0.00011775,2]
[403206611,1769266744309,-262.80801449,0.00011775,2]
[403206613,1769266745790,-282.93022308,0.00011775,2]
[403206617,1769266748375,-461.77467345,0.00011775,2]
[403206620,1769266751678,-164.736033,0.00011775,2]